[Event "IIFL Wealth 4th Mumbai GM"]
[Site "Mumbai"]
[Date "2018.12.30"]
[Round "1"]
[White "Elgabry, Mohsen"]
[Black "Nepal, Prakash"]
[Result "1/2-1/2"]
[ECO "A04"]
[WhiteElo "2305"]
[BlackElo "1902"]
[Annotator "NA"]
[PlyCount "114"]
[EventDate "2018.12.30"]
[EventType "swiss"]
[EventCountry "IND"]
[SourceTitle "playchess.com"]
[Source "ChessBase"]
[SourceQuality "1"]
[TimeControl "40/5400+30:1800+30"]

1. Nf3 {[%emt 0:00:00]} c5 {[%emt 0:00:00]} 2. g3 {[%emt 0:00:00]} Nc6 {[%emt 0:00:18]} 3. Bg2 {[%emt 0:00:22]} g6 {[%emt 0:00:26]} 4. O-O {[%emt 0:00:14]} Bg7 {[%emt 0:00:07]} 5. c4 {[%emt 0:00:14]} e6 {[%emt 0:00:45]} 6. Nc3 {[%emt 0:00:28]} Nge7 {[%emt 0:00:41]} 7. d3 {[%emt 0:00:45]} O-O {[%emt 0:02:38]} 8. Bf4 {[%emt 0:02:51]} e5 {[%emt 0:11:52]} 9. Bd2 {[%emt 0:01:37]} d6 {[%emt 0:09:09]} 10. Ne1 {[%emt 0:00:31]} Be6 {[%emt 0:01:11]} 11. Nd5 {[%emt 0:00:34]} Qd7 {[%emt 0:01:03]} 12. Rb1 {[%emt 0:02:36]} Rab8 {[%emt 0:04:51]} 13. b4 {[%emt 0:00:41]} Kh8 {[%emt 0:08:34]} 14. b5 {[%emt 0:06:11]} Nd8 {[%emt 0:06:57]} 15. Nxe7 {[%emt 0:01:11]} Qxe7 {[%emt 0:00:02]} 16. Nc2 {[%emt 0:00:13]} Qd7 {[%emt 0:00:42]} 17. Ne3 {[%emt 0:00:35]} Bh3 {[%emt 0:01:39]} 18. Qa4 {[%emt 0:01:28]} Bxg2 {[%emt 0:00:10]} 19. Kxg2 {[%emt 0:00:13]} Ra8 {[%emt 0:02:37]} 20. Nd5 {[%emt 0:00:21]} Ne6 {[%emt 0:00:10]} 21. e4 {[%emt 0:05:59]} Nd4 {[%emt 0:07:19]} 22. Be3 {[%emt 0:01:52]} Ne6 {[%emt 0:02:10]} 23. f4 {[%emt 0:02:57]} exf4 {[%emt 0:00:43]} 24. Bxf4 {[%emt 0:00:56]} Nc7 {[%emt 0:08:50]} 25. Nxc7 {[%emt 0:05:04]} Qxc7 {[%emt 0:00:21]} 26. Qc2 {[%emt 0:00:17]} Qe7 {[%emt 0:02:10]} 27. a4 {[%emt 0:03:56]} Rae8 {[%emt 0:03:33]} 28. Rbe1 {[%emt 0:00:25]} Qd7 {[%emt 0:01:43]} 29. Qd2 {[%emt 0:03:09]} Re6 {[%emt 0:06:51]} 30. Re2 {[%emt 0:04:03]} f5 {[%emt 0:09:36]} 31. Rfe1 {[%emt 0:04:28]} fxe4 {[%emt 0:02:04]} 32. Rxe4 {[%emt 0:00:12]} Rfe8 {[%emt 0:00:14]} 33. Rxe6 {[%emt 0:03:13]} Rxe6 {[%emt 0:00:01]} 34. Rxe6 {[%emt 0:00:27]} Qxe6 {[%emt 0:00:02]} 35. Qe3 {[%emt 0:00:14]} Qxe3 {[%emt 0:01:11]} 36. Bxe3 {[%emt 0:00:02]} Kg8 {[%emt 0:00:13]} 37. Kf3 {[%emt 0:00:32]} Kf7 {[%emt 0:00:07]} 38. Ke4 {[%emt 0:00:15]} Ke6 {[%emt 0:00:07]} 39. g4 {[%emt 0:00:32]} a6 {[%emt 0:01:48]} 40. bxa6 {[%emt 0:00:00]} bxa6 {[%emt 0:00:00]} 41. d4 {[%emt 0:04:22]} cxd4 {[%emt 0:00:20]} 42. Bxd4 {[%emt 0:00:02]} Bh6 {[%emt 0:00:51]} 43. h3 {[%emt 0:02:47]} Bd2 {[%emt 0:00:39]} 44. Bf2 {[%emt 0:01:36]} Bc1 {[%emt 0:08:05]} 45. Be1 {[%emt 0:00:16]} h5 {[%emt 0:03:11]} 46. gxh5 {[%emt 0:00:15]} gxh5 {[%emt 0:00:02]} 47. Bc3 {[%emt 0:00:25]} Bg5 {[%emt 0:00:24]} 48. Bd4 {[%emt 0:00:54]} Bc1 {[%emt 0:01:39]} 49. Bg1 {[%emt 0:01:11]} Bg5 {[%emt 0:02:53]} 50. Bh2 {[%emt 0:02:23]} Bh6 {[%emt 0:01:25]} 51. Bf4 {[%emt 0:01:39]} Bg7 {[%emt 0:00:16]} 52. Bd2 {[%emt 0:00:47]} Be5 {[%emt 0:00:47]} 53. Be3 {[%emt 0:00:32]} Bg3 {[%emt 0:00:49]} 54. Bg5 {[%emt 0:02:05]} Be5 {[%emt 0:00:51]} 55. Be3 {[%emt 0:04:38]} Bg3 {[%emt 0:02:28]} 56. Bd4 {[%emt 0:00:33]} Bh2 {[%emt 0:00:32]} 57. Bc3 {[%emt 0:03:08]} Bg3 {[%emt 0:00:15]} 1/2-1/2

[Event "IIFL Wealth 4th Mumbai GM"]
[Site "Mumbai"]
[Date "2018.12.30"]
[Round "1"]
[White "Sangma, Rahul"]
[Black "Larmet, Nino"]
[Result "1-0"]
[ECO "C91"]
[WhiteElo "2289"]
[BlackElo "1835"]
[Annotator "NA"]
[PlyCount "67"]
[EventDate "2018.12.30"]
[EventType "swiss"]
[EventCountry "IND"]
[SourceTitle "playchess.com"]
[Source "ChessBase"]
[SourceQuality "1"]
[TimeControl "40/5400+30:1800+30"]

1. e4 {[%emt 0:00:00]} e5 {[%emt 0:00:25]} 2. Nf3 {[%emt 0:00:00]} Nc6 {[%emt 0:00:09]} 3. Bb5 {[%emt 0:00:13]} a6 {[%emt 0:00:08]} 4. Ba4 {[%emt 0:00:02]} Nf6 {[%emt 0:00:17]} 5. O-O {[%emt 0:00:32]} Be7 {[%emt 0:01:43]} 6. Re1 {[%emt 0:00:44]} b5 {[%emt 0:05:35]} 7. Bb3 {[%emt 0:00:04]} O-O {[%emt 0:00:55]} 8. d4 {[%emt 0:00:42]} d6 {[%emt 0:05:26]} 9. c3 {[%emt 0:00:13]} Bg4 {[%emt 0:01:10]} 10. Be3 {[%emt 0:04:03]} Re8 {[%emt 0:10:27]} 11. Nbd2 {[%emt 0:02:04]} Bf8 {[%emt 0:01:30]} 12. h3 {[%emt 0:00:33]} Bd7 {[%emt 0:31:45]} 13. Ng5 {[%emt 0:05:51]} Re7 {[%emt 0:00:39]} 14. f4 {[%emt 0:00:24]} h6 {[%emt 0:04:38]} 15. Ngf3 {[%emt 0:02:28]} exd4 {[%emt 0:01:36]} 16. Nxd4 {[%emt 0:02:35]} Na5 {[%emt 0:01:23]} 17. Bc2 {[%emt 0:00:50]} c5 {[%emt 0:02:38]} 18. N4f3 {[%emt 0:03:15]} Bc6 {[%emt 0:02:10]} 19. Bf2 {[%emt 0:00:43]} Re8 {[%emt 0:01:43]} 20. Bh4 {[%emt 0:04:53]} Be7 {[%emt 0:00:40]} 21. Qe2 {[%emt 0:01:34]} Nd7 {[%emt 0:01:05]} 22. Qf2 {[%emt 0:00:31]} Bb7 {[%emt 0:05:50]} 23. Rad1 {[%emt 0:00:38]} Nc6 {[%emt 0:01:05]} 24. Nf1 {[%emt 0:03:47]} Qc7 {[%emt 0:04:32]} 25. Ne3 {[%emt 0:02:24]} Bxh4 {[%emt 0:00:18]} 26. Nxh4 {[%emt 0:02:07]} Ne7 {[%emt 0:00:02]} 27. Nef5 {[%emt 0:00:42]} Nxf5 {[%emt 0:02:00]} 28. Nxf5 {[%emt 0:00:22]} Re6 {[%emt 0:00:16]} 29. Qg3 {[%emt 0:00:53]} Rg6 {[%emt 0:00:53]} 30. Ne7+ {[%emt 0:00:04]} Kh7 {[%emt 0:00:37]} 31. e5 {[%emt 0:01:21]} dxe5 {[%emt 0:02:56]} 32. Nxg6 {[%emt 0:01:44]} fxg6 {[%emt 0:00:22]} 33. Qxg6+ {[%emt 0:00:02]} Kg8 {[%emt 0:00:02]} 34. Qe6+ {[%emt 0:00:10]} 1-0

[Event "IIFL Wealth 4th Mumbai GM"]
[Site "Mumbai"]
[Date "2018.12.30"]
[Round "1"]
[White "Balasubramaniam H"]
[Black "Kishor, Shazzad"]
[Result "1-0"]
[ECO "C10"]
[WhiteElo "2270"]
[BlackElo "1730"]
[Annotator "NA"]
[PlyCount "56"]
[EventDate "2018.12.30"]
[EventType "swiss"]
[EventCountry "IND"]
[SourceTitle "playchess.com"]
[Source "ChessBase"]
[SourceQuality "1"]
[TimeControl "40/5400+30:1800+30"]

1. e4 {[%emt 0:00:00]} e6 {[%emt 0:00:00]} 2. d4 {[%emt 0:00:00]} d5 {[%emt 0:00:00]} 3. Nc3 {[%emt 0:00:00]} dxe4 {[%emt 0:00:52]} 4. Nxe4 {[%emt 0:00:00]} Nf6 {[%emt 0:00:09]} 5. Bd3 {[%emt 0:00:28]} Nxe4 {[%emt 0:01:04]} 6. Bxe4 {[%emt 0:00:04]} Nd7 {[%emt 0:00:39]} 7. Nf3 {[%emt 0:00:18]} Nf6 {[%emt 0:00:36]} 8. Bd3 {[%emt 0:00:05]} Be7 {[%emt 0:00:56]} 9. O-O {[%emt 0:01:19]} O-O {[%emt 0:00:30]} 10. Ne5 {[%emt 0:04:21]} c5 {[%emt 0:02:59]} 11. dxc5 {[%emt 0:03:25]} Bxc5 {[%emt 0:00:20]} 12. Qe2 {[%emt 0:05:55]} Bd6 {[%emt 0:07:13]} 13. Bg5 {[%emt 0:03:18]} Bxe5 {[%emt 0:03:42]} 14. Qxe5 {[%emt 0:00:03]} Qd5 {[%emt 0:00:35]} 15. Bxf6 {[%emt 0:03:32]} gxf6 {[%emt 0:00:04]} 16. Qxf6 {[%emt 0:00:07]} Qd8 {[%emt 0:00:31]} 17. Qh6 {[%emt 0:06:34]} f5 {[%emt 0:03:13]} 18. Bc4 {[%emt 0:00:25]} Qf6 {[%emt 0:00:14]} 19. Qxf6 {[%emt 0:00:30]} Rxf6 {[%emt 0:00:03]} 20. Rad1 {[%emt 0:00:10]} Kg7 {[%emt 0:02:48]} 21. Rd8 {[%emt 0:01:19]} a6 {[%emt 0:08:00]} 22. Rfd1 {[%emt 0:06:34]} Rf8 {[%emt 0:02:29]} 23. Rxf8 {[%emt 0:09:22]} Kxf8 {[%emt 0:00:02]} 24. Rd8+ {[%emt 0:00:10]} Ke7 {[%emt 0:00:16]} 25. Rh8 {[%emt 0:00:09]} Kd6 {[%emt 0:00:28]} 26. Re8 {[%emt 0:01:44]} a5 {[%emt 0:01:00]} 27. Bxe6 {[%emt 0:00:27]} Bxe6 {[%emt 0:00:30]} 28. Rxa8 {[%emt 0:00:30]} f4 {[%emt 0:00:30]} 1-0

[Event "IIFL Wealth 4th Mumbai GM"]
[Site "Mumbai"]
[Date "2018.12.30"]
[Round "1"]
[White "Pranav Vijay"]
[Black "Trisha Kanyamarala"]
[Result "1-0"]
[ECO "B10"]
[WhiteElo "2265"]
[BlackElo "1942"]
[Annotator "NA"]
[PlyCount "71"]
[EventDate "2018.12.30"]
[EventType "swiss"]
[EventCountry "IND"]
[SourceTitle "playchess.com"]
[Source "ChessBase"]
[SourceQuality "1"]
[TimeControl "40/5400+30:1800+30"]

1. e4 {[%emt 0:00:00]} c6 {[%emt 0:00:00]} 2. Nc3 {[%emt 0:00:00]} d5 {[%emt 0:00:04]} 3. Qe2 {[%emt 0:00:00]} d4 {[%emt 0:01:43]} 4. Nd1 {[%emt 0:00:04]} e5 {[%emt 0:01:08]} 5. g3 {[%emt 0:01:27]} Bd6 {[%emt 0:01:10]} 6. Bg2 {[%emt 0:00:26]} Nf6 {[%emt 0:00:23]} 7. d3 {[%emt 0:00:41]} O-O {[%emt 0:06:44]} 8. Nh3 {[%emt 0:03:06]} Bd7 {[%emt 0:04:47]} 9. f3 {[%emt 0:01:31]} c5 {[%emt 0:03:11]} 10. O-O {[%emt 0:00:42]} Nc6 {[%emt 0:02:02]} 11. Ndf2 {[%emt 0:01:25]} Ne8 {[%emt 0:05:08]} 12. f4 {[%emt 0:01:24]} exf4 {[%emt 0:05:57]} 13. Nxf4 {[%emt 0:00:46]} Nf6 {[%emt 0:09:12]} 14. c4 {[%emt 0:10:05]} Re8 {[%emt 0:19:17]} 15. Bd2 {[%emt 0:05:26]} Ne5 {[%emt 0:01:12]} 16. Bh3 {[%emt 0:02:16]} Qc8 {[%emt 0:02:19]} 17. Bxd7 {[%emt 0:02:11]} Qxd7 {[%emt 0:00:07]} 18. Kg2 {[%emt 0:01:05]} a5 {[%emt 0:07:06]} 19. a4 {[%emt 0:02:22]} Nfg4 {[%emt 0:03:59]} 20. Nd5 {[%emt 0:02:04]} Qe6 {[%emt 0:07:17]} 21. Nh3 {[%emt 0:00:55]} Ra6 {[%emt 0:07:30]} 22. Nhf4 {[%emt 0:01:40]} Qd7 {[%emt 0:00:35]} 23. h3 {[%emt 0:00:29]} Nh6 {[%emt 0:00:08]} 24. Nh5 {[%emt 0:01:47]} Be7 {[%emt 0:00:18]} 25. Rf2 {[%emt 0:01:46]} Bd8 {[%emt 0:04:35]} 26. b3 {[%emt 0:01:51]} f5 {[%emt 0:02:09]} 27. Bxh6 {[%emt 0:04:18]} Rxh6 {[%emt 0:00:06]} 28. Rxf5 {[%emt 0:00:10]} Nxc4 {[%emt 0:01:29]} 29. Qg4 {[%emt 0:00:12]} Ne5 {[%emt 0:04:12]} 30. Rxe5 {[%emt 0:00:23]} Qxg4 {[%emt 0:00:21]} 31. Rxe8+ {[%emt 0:00:10]} Kf7 {[%emt 0:00:07]} 32. hxg4 {[%emt 0:00:06]} Kxe8 {[%emt 0:00:06]} 33. Nxg7+ {[%emt 0:00:08]} Kf7 {[%emt 0:00:11]} 34. Nf5 {[%emt 0:00:05]} Rg6 {[%emt 0:00:11]} 35. Rh1 {[%emt 0:00:06]} Rxg4 {[%emt 0:00:42]} 36. Nh6+ {[%emt 0:00:11]} 1-0

[Event "IIFL Wealth 4th Mumbai GM"]
[Site "Mumbai"]
[Date "2018.12.30"]
[Round "1"]
[White "Ziatdinov, Raset"]
[Black "Shah, Ram Surat Prasad"]
[Result "1-0"]
[ECO "C00"]
[WhiteElo "2252"]
[BlackElo "1639"]
[Annotator "NA"]
[PlyCount "87"]
[EventDate "2018.12.30"]
[EventType "swiss"]
[EventCountry "IND"]
[SourceTitle "playchess.com"]
[Source "ChessBase"]
[SourceQuality "1"]
[TimeControl "40/5400+30:1800+30"]

1. e4 {[%emt 0:00:00]} e6 {[%emt 0:00:00]} 2. f4 {[%emt 0:00:00]} d5 {[%emt 0:00:20]} 3. e5 {[%emt 0:00:00]} c5 {[%emt 0:00:39]} 4. Nf3 {[%emt 0:00:01]} Nc6 {[%emt 0:00:50]} 5. Be2 {[%emt 0:00:02]} g6 {[%emt 0:01:13]} 6. O-O {[%emt 0:00:07]} Bg7 {[%emt 0:00:59]} 7. Na3 {[%emt 0:00:30]} a6 {[%emt 0:00:45]} 8. d4 {[%emt 0:02:44]} cxd4 {[%emt 0:03:12]} 9. Nxd4 {[%emt 0:00:13]} Nge7 {[%emt 0:00:49]} 10. Be3 {[%emt 0:00:44]} O-O 11. Nxc6 bxc6 {[%emt 0:04:00]} 12. Bc5 {[%emt 0:03:50]} Re8 {[%emt 0:02:10]} 13. g4 {[%emt 0:05:11]} f5 {[%emt 0:04:20]} 14. g5 {[%emt 0:08:03]} Kf7 {[%emt 0:04:54]} 15. Rf3 {[%emt 0:00:58]} Ng8 {[%emt 0:02:10]} 16. Qd4 {[%emt 0:00:29]} Bd7 {[%emt 0:02:25]} 17. Rb3 {[%emt 0:00:38]} h6 {[%emt 0:02:59]} 18. h4 {[%emt 0:00:06]} Qc8 {[%emt 0:05:48]} 19. Rd1 {[%emt 0:00:57]} Bf8 {[%emt 0:03:05]} 20. Rdd3 {[%emt 0:05:43]} Bxc5 {[%emt 0:02:50]} 21. Qxc5 {[%emt 0:00:04]} Qc7 {[%emt 0:02:01]} 22. Rb6 {[%emt 0:02:08]} Reb8 {[%emt 0:05:13]} 23. Rdb3 {[%emt 0:00:54]} Rxb6 {[%emt 0:01:34]} 24. Qxb6 {[%emt 0:02:03]} Qxb6+ {[%emt 0:02:26]} 25. Rxb6 {[%emt 0:00:04]} a5 {[%emt 0:00:26]} 26. Kf2 {[%emt 0:00:48]} Ra7 {[%emt 0:02:23]} 27. Ke3 {[%emt 0:00:22]} hxg5 {[%emt 0:01:49]} 28. hxg5 {[%emt 0:00:39]} a4 {[%emt 0:05:57]} 29. Kd4 {[%emt 0:01:29]} Ne7 {[%emt 0:01:10]} 30. c4 {[%emt 0:05:39]} Ra5 {[%emt 0:02:30]} 31. c5 {[%emt 0:00:19]} Nc8 {[%emt 0:05:30]} 32. Ra6 {[%emt 0:01:11]} Rxa6 {[%emt 0:01:04]} 33. Bxa6 {[%emt 0:00:03]} Na7 {[%emt 0:02:00]} 34. Kc3 {[%emt 0:02:21]} Ke7 {[%emt 0:07:08]} 35. Kb4 {[%emt 0:00:22]} Kd8 {[%emt 0:00:19]} 36. Kxa4 {[%emt 0:00:25]} Bc8 {[%emt 0:03:09]} 37. Bd3 {[%emt 0:01:07]} Kc7 {[%emt 0:00:49]} 38. Nc2 {[%emt 0:00:19]} Bd7 {[%emt 0:00:26]} 39. Nd4 {[%emt 0:00:15]} Nc8 {[%emt 0:02:55]} 40. b4 {[%emt 0:00:18]} Na7 {[%emt 0:00:47]} 41. Ba6 {[%emt 0:00:39]} Kb8 {[%emt 0:00:41]} 42. Ka5 {[%emt 0:00:32]} Nb5 {[%emt 0:01:20]} 43. Bxb5 {[%emt 0:00:09]} cxb5 {[%emt 0:00:30]} 44. Kb6 {[%emt 0:00:02]} 1-0

[Event "IIFL Wealth 4th Mumbai GM"]
[Site "Mumbai"]
[Date "2018.12.30"]
[Round "1"]
[White "Saurabh Anand"]
[Black "Dhungel, Uttam"]
[Result "1-0"]
[ECO "B42"]
[WhiteElo "2246"]
[BlackElo "1587"]
[Annotator "NA"]
[PlyCount "65"]
[EventDate "2018.12.30"]
[EventType "swiss"]
[EventCountry "IND"]
[SourceTitle "playchess.com"]
[Source "ChessBase"]
[SourceQuality "1"]
[TimeControl "40/5400+30:1800+30"]

1. e4 {[%emt 0:00:00]} c5 {[%emt 0:00:00]} 2. Nf3 {[%emt 0:00:00]} e6 {[%emt 0:00:00]} 3. d4 {[%emt 0:00:16]} cxd4 {[%emt 0:00:05]} 4. Nxd4 {[%emt 0:00:08]} a6 {[%emt 0:00:40]} 5. Bd3 {[%emt 0:00:24]} Nc6 {[%emt 0:00:28]} 6. Nxc6 {[%emt 0:00:42]} bxc6 {[%emt 0:00:14]} 7. O-O {[%emt 0:01:32]} Qc7 {[%emt 0:02:01]} 8. c4 {[%emt 0:01:39]} Nf6 {[%emt 0:01:44]} 9. Nc3 {[%emt 0:00:32]} Be7 {[%emt 0:02:11]} 10. Qe2 {[%emt 0:01:21]} h5 {[%emt 0:02:47]} 11. e5 {[%emt 0:10:16]} Ng4 {[%emt 0:01:56]} 12. f4 {[%emt 0:00:34]} c5 {[%emt 0:05:51]} 13. h3 {[%emt 0:03:38]} Nh6 {[%emt 0:01:15]} 14. f5 {[%emt 0:02:57]} Bb7 {[%emt 0:04:08]} 15. fxe6 {[%emt 0:02:07]} dxe6 {[%emt 0:02:13]} 16. Be4 {[%emt 0:01:39]} h4 {[%emt 0:04:37]} 17. Bxh6 {[%emt 0:01:29]} Rxh6 {[%emt 0:10:08]} 18. Qf3 {[%emt 0:00:13]} O-O-O {[%emt 0:03:58]} 19. Bxb7+ {[%emt 0:02:32]} Qxb7 {[%emt 0:00:17]} 20. Qxb7+ {[%emt 0:00:10]} Kxb7 {[%emt 0:00:27]} 21. Rxf7 {[%emt 0:00:03]} Rd7 {[%emt 0:01:44]} 22. Rxg7 {[%emt 0:06:27]} Kc6 {[%emt 0:02:35]} 23. Rf1 {[%emt 0:02:16]} Bd8 {[%emt 0:03:52]} 24. Rxd7 {[%emt 0:02:07]} Kxd7 {[%emt 0:00:29]} 25. Rd1+ {[%emt 0:01:51]} Ke7 {[%emt 0:01:42]} 26. Rd6 {[%emt 0:02:02]} Bc7 {[%emt 0:01:18]} 27. Nd5+ {[%emt 0:00:14]} exd5 {[%emt 0:02:00]} 28. Rxh6 {[%emt 0:00:08]} Bxe5 {[%emt 0:01:11]} 29. cxd5 {[%emt 0:00:20]} Bxb2 {[%emt 0:00:54]} 30. Rxh4 {[%emt 0:00:13]} Kd6 {[%emt 0:00:20]} 31. Kf1 {[%emt 0:00:11]} Be5 {[%emt 0:02:18]} 32. Ke2 {[%emt 0:00:12]} Kxd5 {[%emt 0:00:15]} 33. Kd3 {[%emt 0:00:08]} 1-0

[Event "IIFL Wealth 4th Mumbai GM"]
[Site "Mumbai"]
[Date "2018.12.30"]
[Round "1"]
[White "Navalgund, Niranjan"]
[Black "Ahsan, Ali Jewel"]
[Result "1-0"]
[ECO "A53"]
[WhiteElo "2240"]
[BlackElo "1363"]
[Annotator "NA"]
[PlyCount "95"]
[EventDate "2018.12.30"]
[EventType "swiss"]
[EventCountry "IND"]
[SourceTitle "playchess.com"]
[Source "ChessBase"]
[SourceQuality "1"]
[TimeControl "40/5400+30:1800+30"]

1. d4 {[%emt 0:00:00]} Nf6 {[%emt 0:00:00]} 2. c4 {[%emt 0:00:00]} d6 {[%emt 0:00:18]} 3. Nc3 {[%emt 0:00:00]} d5 {[%emt 0:01:08]} 4. cxd5 {[%emt 0:00:00]} Nxd5 {[%emt 0:00:22]} 5. e4 {[%emt 0:00:00]} Nxc3 {[%emt 0:01:07]} 6. bxc3 {[%emt 0:00:00]} b6 {[%emt 0:01:12]} 7. Bb5+ {[%emt 0:00:21]} Bd7 {[%emt 0:00:45]} 8. Bc4 {[%emt 0:00:58]} e6 {[%emt 0:00:42]} 9. Nf3 {[%emt 0:00:05]} Be7 {[%emt 0:01:40]} 10. O-O {[%emt 0:00:04]} O-O {[%emt 0:00:21]} 11. Ne5 {[%emt 0:00:59]} Nc6 {[%emt 0:02:00]} 12. Nxd7 {[%emt 0:00:20]} Qxd7 {[%emt 0:01:43]} 13. Qg4 {[%emt 0:00:02]} Kh8 {[%emt 0:03:58]} 14. Be3 {[%emt 0:03:35]} Na5 {[%emt 0:02:27]} 15. Bd3 {[%emt 0:00:36]} f5 {[%emt 0:02:18]} 16. exf5 {[%emt 0:03:43]} exf5 {[%emt 0:01:57]} 17. Qh3 {[%emt 0:00:40]} h6 {[%emt 0:04:04]} 18. Rfe1 {[%emt 0:01:06]} Rad8 {[%emt 0:02:52]} 19. Bxh6 {[%emt 0:01:19]} Kg8 {[%emt 0:16:38]} 20. Bf4 {[%emt 0:00:26]} Bd6 {[%emt 0:02:14]} 21. Bg5 {[%emt 0:00:13]} Rc8 {[%emt 0:05:55]} 22. Rad1 {[%emt 0:01:52]} g6 {[%emt 0:04:44]} 23. Qh6 {[%emt 0:05:19]} Qh7 {[%emt 0:02:07]} 24. Qxh7+ {[%emt 0:04:55]} Kxh7 {[%emt 0:00:26]} 25. Re6 {[%emt 0:00:27]} Rf7 {[%emt 0:03:11]} 26. Rde1 {[%emt 0:00:45]} Kg7 {[%emt 0:02:28]} 27. R1e3 {[%emt 0:00:53]} Rh8 {[%emt 0:01:55]} 28. h4 {[%emt 0:00:03]} Nc6 {[%emt 0:02:53]} 29. Bb5 {[%emt 0:03:33]} Nb8 {[%emt 0:01:00]} 30. Be8 {[%emt 0:00:36]} f4 {[%emt 0:02:55]} 31. R3e4 {[%emt 0:00:36]} Rxe8 {[%emt 0:06:00]} 32. Rxe8 {[%emt 0:00:03]} Nd7 {[%emt 0:02:04]} 33. R4e6 {[%emt 0:05:28]} Nf8 {[%emt 0:01:27]} 34. Re1 {[%emt 0:00:44]} f3 {[%emt 0:00:44]} 35. Be7 {[%emt 0:00:18]} fxg2 {[%emt 0:02:56]} 36. Bxd6 {[%emt 0:00:18]} cxd6 {[%emt 0:01:44]} 37. Kxg2 {[%emt 0:00:08]} Rd7 {[%emt 0:01:42]} 38. R1e7+ {[%emt 0:00:08]} Rxe7 {[%emt 0:00:15]} 39. Rxe7+ {[%emt 0:00:02]} Kf6 {[%emt 0:00:29]} 40. Rxa7 {[%emt 0:00:00]} Ne6 {[%emt 0:00:00]} 41. Rb7 {[%emt 0:00:25]} Nf4+ {[%emt 0:01:05]} 42. Kf3 {[%emt 0:00:02]} Nd5 {[%emt 0:02:26]} 43. c4 {[%emt 0:00:02]} Nc3 {[%emt 0:00:58]} 44. Rxb6 {[%emt 0:00:03]} Ke7 {[%emt 0:00:48]} 45. c5 {[%emt 0:00:06]} dxc5 {[%emt 0:00:39]} 46. dxc5 {[%emt 0:00:02]} Kd7 {[%emt 0:01:13]} 47. Rxg6 {[%emt 0:00:04]} Nxa2 {[%emt 0:00:37]} 48. h5 {[%emt 0:00:02]} 1-0

[Event "IIFL Wealth 4th Mumbai GM"]
[Site "Mumbai"]
[Date "2018.12.30"]
[Round "1"]
[White "Mohite, Ranveer"]
[Black "Kafle, Binod"]
[Result "1-0"]
[ECO "C60"]
[WhiteElo "2236"]
[BlackElo "1191"]
[Annotator "NA"]
[PlyCount "53"]
[EventDate "2018.12.30"]
[EventType "swiss"]
[EventCountry "IND"]
[SourceTitle "playchess.com"]
[Source "ChessBase"]
[SourceQuality "1"]
[TimeControl "40/5400+30:1800+30"]

1. e4 {[%emt 0:00:17]} e5 {[%emt 0:00:00]} 2. Nf3 {[%emt 0:00:07]} Nc6 {[%emt 0:00:14]} 3. Bb5 {[%emt 0:00:04]} f6 {[%emt 0:01:12]} 4. O-O {[%emt 0:00:38]} Bc5 {[%emt 0:00:54]} 5. c3 {[%emt 0:00:02]} a6 {[%emt 0:01:11]} 6. Bc4 {[%emt 0:01:34]} d6 {[%emt 0:01:39]} 7. d4 {[%emt 0:02:24]} exd4 {[%emt 0:02:26]} 8. cxd4 {[%emt 0:03:18]} Ba7 {[%emt 0:01:09]} 9. h3 {[%emt 0:05:19]} Bd7 {[%emt 0:02:28]} 10. Re1 {[%emt 0:01:12]} Qe7 {[%emt 0:02:48]} 11. Nc3 {[%emt 0:05:10]} Nb4 {[%emt 0:03:57]} 12. Bxg8 {[%emt 0:03:32]} Rxg8 {[%emt 0:01:15]} 13. Qb3 {[%emt 0:00:01]} O-O-O {[%emt 0:04:23]} 14. Qxb4 {[%emt 0:00:06]} Bc6 {[%emt 0:01:56]} 15. Be3 {[%emt 0:02:03]} Bxe4 {[%emt 0:02:42]} 16. Bd2 {[%emt 0:02:02]} f5 {[%emt 0:03:58]} 17. Bg5 {[%emt 0:00:06]} Qf7 {[%emt 0:01:05]} 18. Bxd8 {[%emt 0:00:35]} Rxd8 {[%emt 0:00:38]} 19. Nxe4 {[%emt 0:00:11]} fxe4 {[%emt 0:00:29]} 20. Rxe4 {[%emt 0:00:02]} Bb6 {[%emt 0:03:03]} 21. a4 {[%emt 0:00:53]} a5 {[%emt 0:01:17]} 22. Qb5 {[%emt 0:00:19]} d5 {[%emt 0:01:33]} 23. Re3 {[%emt 0:00:49]} Kb8 {[%emt 0:02:36]} 24. Rae1 {[%emt 0:00:14]} Ka7 {[%emt 0:02:12]} 25. b4 {[%emt 0:00:12]} c6 {[%emt 0:00:20]} 26. Qd3 {[%emt 0:00:10]} Bc7 {[%emt 0:01:16]} 27. Re7 {[%emt 0:00:56]} 1-0

[Event "IIFL Wealth 4th Mumbai GM"]
[Site "Mumbai"]
[Date "2018.12.30"]
[Round "1"]
[White "Praveen Kumar C"]
[Black "Aleksandrov, Aleksej"]
[Result "0-1"]
[ECO "E04"]
[WhiteElo "2233"]
[BlackElo "2590"]
[Annotator "ChessBase"]
[PlyCount "58"]
[EventDate "2018.12.30"]
[EventType "swiss"]
[EventCountry "IND"]
[SourceTitle "playchess.com"]
[Source "ChessBase"]
[SourceQuality "1"]
[TimeControl "40/5400+30:1800+30"]

1. d4 {[%emt 0:00:00]} Nf6 {[%emt 0:00:00]} 2. c4 {[%emt 0:00:00]} e6 {[%emt 0:00:00]} 3. g3 {[%emt 0:00:00]} d5 {[%emt 0:00:00]} 4. Nf3 {[%emt 0:00:00]} dxc4 {[%emt 0:00:00]} 5. Bg2 {[%emt 0:00:38]} Nc6 {[%emt 0:00:00]} 6. Qa4 {[%emt 0:01:05]} Nd5 {[%emt 0:02:01]} 7. Qxc4 {[%emt 0:00:44]} Nb6 {[%emt 0:00:04]} 8. Qb5 {[%emt 0:00:58]} a6 {[%emt 0:01:29]} 9. Qd3 {[%emt 0:05:09]} e5 {[%emt 0:00:15]} 10. O-O {[%emt 0:14:50]} exd4 {[%emt 0:06:45]} 11. Rd1 {[%emt 0:09:50]} Bc5 {[%emt 0:00:42]} 12. a3 {[%emt 0:05:54]} O-O {[%emt 0:00:30]} 13. Nbd2 {[%emt 0:01:35]} Be7 {[%emt 0:05:25]} 14. Nb3 {[%emt 0:10:00]} Bf6 {[%emt 0:05:01]} 15. Qc2 {[%emt 0:13:03]} Be6 {[%emt 0:17:06]} 16. Nc5 {[%emt 0:04:52]} Qc8 {[%emt 0:15:25]} 17. Nxb7 {[%emt 0:02:13]} Qxb7 {[%emt 0:00:11]} 18. Ng5 {[%emt 0:00:18]} Bxg5 {[%emt 0:00:03]} 19. Bxc6 {[%emt 0:00:12]} Bb3 {[%emt 0:00:35]} 20. Qe4 {[%emt 0:02:33]} Rae8 {[%emt 0:07:00]} 21. Bxb7 {[%emt 0:04:00]} Rxe4 {[%emt 0:02:24]} 22. Bxe4 {[%emt 0:01:06]} Bxd1 {[%emt 0:00:30]} 23. Bxg5 {[%emt 0:00:08]} Bxe2 {[%emt 0:00:58]} 24. Rc1 {[%emt 0:00:23]} h6 {[%emt 0:06:18]} 25. Bf4 {[%emt 0:02:55]} g5 {[%emt 0:16:36]} 26. Bd2 {[%emt 0:00:43]} Nc4 {[%emt 0:04:32]} 27. Bb4 {[%emt 0:02:39]} Rd8 {[%emt 0:04:19]} 28. b3 {[%emt 0:03:56]} c5 {[%emt 0:00:57]} 29. Bxc5 {[%emt 0:02:07]} Nd2 {[%emt 0:00:18]} 0-1